bitfinex/quotes_ETHUSD_20240709
["timestamp","ask_amount","ask_price","bid_price","bid_amount"]
[1720522490179,3.0066,3089.8,3088.9,6.47465]
[1720522490385,0.28215693,3089.7,3089.0,3.23728]
[1720522491215,3.0066,3089.8,3089.0,3.23728]
[1720522491422,0.28213855,3089.7,3089.0,3.23728]
[1720522491986,0.28213855,3089.7,3089.1,3.23718]
[1720522492186,0.28213855,3089.7,3089.2,3.30175544]
[1720522492506,0.3389678,3090.0,3089.2,3.30175544]
[1720522492712,0.83219656,3089.9,3089.2,3.30175544]
[1720522492901,0.3389678,3090.0,3089.5,3.23676]
[1720522493218,0.3389678,3090.0,3089.5,3.30148662]
[1720522493428,0.3389678,3090.0,3089.5,6.17748662]
[1720522493639,0.3389678,3090.0,3089.9,3.23635]
[1720522494535,0.3389678,3090.0,3089.5,2.94071971]
[1720522494690,0.3389678,3090.0,3089.7,3.2365]
[1720522494886,2.3381,3090.5,3089.7,3.2365]
[1720522495087,0.28210906,3090.4,3089.6,3.23663]
[1720522495725,0.28210906,3090.4,3089.5,3.23666]
[1720522495928,0.28210906,3090.4,3089.3,6.23689]
[1720522496128,0.55,3090.3,3089.3,6.23689]
[1720522496432,0.28210906,3090.2,3089.3,6.23689]
[1720522496629,2.451,3090.1,3089.3,6.23689]
[1720522496937,0.28210906,3090.0,3089.3,9.4738]
[1720522497105,0.28216656,3089.9,3089.4,3.23686]
[1720522497418,0.28216656,3089.8,3089.3,6.23689]
[1720522497625,2.451,3090.1,3089.3,3.23689]
[1720522497801,0.28215914,3090.0,3089.3,3.23689]
[1720522498382,0.28215914,3090.0,3089.1,6.11313]
[1720522498590,0.55,3089.9,3089.1,3.23713]
[1720522498832,0.28215914,3089.8,3088.9,6.23729]
[1720522499131,0.28215914,3089.8,3089.0,3.23725]
[1720522499631,2.3825,3089.7,3089.0,3.23725]
[1720522499956,0.28215914,3089.6,3089.0,3.23725]
[1720522500380,2.3825,3089.7,3089.0,6.47448]
[1720522500656,0.28223385,3089.6,3089.1,3.23718]
[1720522501064,0.28223385,3089.6,3089.0,3.23723]
[1720522501663,0.28223385,3089.6,3089.0,3.23722]
[1720522501964,0.28223385,3089.6,3089.0,6.47443]
[1720522502469,0.28223385,3089.6,3089.0,3.23721]
[1720522502926,2.3825,3089.7,3089.0,3.23721]
[1720522503128,0.36319499,3089.6,3088.8,3.23743]
[1720522503465,0.28227554,3089.5,3088.7,3.2376]
[1720522503667,0.83227554,3089.5,3088.7,3.2376]
[1720522503959,0.28228598,3089.4,3088.7,3.2376]
[1720522504157,2.2527,3089.2,3087.9,8.48128]
[1720522504324,0.28228598,3089.1,3088.1,3.23817]
[1720522504521,0.2534986,3089.0,3088.0,3.23834]
[1720522504769,0.83228598,3088.9,3088.0,3.23834]
[1720522504928,2.53498598,3088.8,3087.8,3.23852]
[1720522505128,0.36323032,3088.7,3087.6,8.84434]
[1720522505353,1.09387901,3088.6,3087.6,2.3669]
[1720522505555,0.44385621,3088.5,3087.6,3.23875]
[1720522505725,0.36290085,3088.4,3087.5,2.876]
[1720522505931,0.08095198,3088.3,3087.4,6.47777]
[1720522506132,0.08095458,3088.5,3087.5,3.23884]
[1720522506340,0.91293843,3088.4,3087.5,3.23884]
[1720522506633,0.55,3088.4,3087.6,3.23873]
[1720522507050,0.55,3088.5,3087.6,6.47742]
[1720522507258,0.55,3088.5,3087.2,5.297]
[1720522507259,0.55,3088.7,3087.8,3.23851]
[1720522507460,0.55,3088.7,3087.9,3.23843]
[1720522507868,2.2527,3088.8,3088.0,3.23827]
[1720522508451,2.2527,3088.8,3087.7,3.23863]
[1720522508666,0.55,3088.7,3087.8,3.0]
[1720522509266,0.55,3088.7,3087.8,6.23848]
[1720522509839,2.2591,3089.4,3087.8,3.0]
[1720522510173,0.36299047,3089.3,3088.2,3.23806]
[1720522510470,3.36299047,3089.3,3088.2,3.23806]
[1720522510776,0.92519952,3089.2,3088.2,3.23806]
[1720522510961,0.55220905,3089.2,3088.2,3.23806]
[1720522511976,0.55,3089.1,3088.2,3.23806]
[1720522512887,0.55,3089.1,3088.0,3.23827]
[1720522513043,2.3638,3089.0,3088.0,3.23827]
[1720522513243,0.84138,3088.9,3088.0,3.23827]
[1720522513443,0.92232188,3088.9,3087.8,3.0]
[1720522513638,2.72671202,3088.8,3087.7,3.0]
[1720522513879,0.63094188,3088.9,3087.7,3.0]
[1720522513880,3.35767623,3088.7,3087.7,3.0]
[1720522514080,0.55,3088.6,3087.7,3.0]
[1720522514279,0.55,3088.6,3087.7,6.23858]
[1720522514836,0.55,3088.6,3087.7,9.47713]
[1720522515042,0.55,3088.6,3087.8,3.23847]
[1720522515257,2.3638,3088.7,3087.8,3.23847]
[1720522515258,2.3638,3088.7,3088.0,3.23832]
[1720522516596,2.3638,3088.7,3088.1,3.23821]
[1720522516802,2.3638,3088.7,3088.1,3.30296728]
[1720522517380,2.3638,3088.7,3088.2,3.23813]
[1720522517567,2.3638,3088.7,3088.3,0.06475385]
[1720522517771,2.3638,3088.7,3088.2,3.23813]
[1720522518664,2.3494,3089.1,3088.2,3.23813]
[1720522518862,0.55,3089.0,3088.2,3.23813]
[1720522520169,2.3494,3088.9,3088.0,3.23825]
[1720522520362,0.55,3088.8,3088.1,3.23817]
[1720522521202,2.3494,3088.9,3088.3,3.23801]
[1720522522460,2.3494,3088.9,3088.0,3.23827]
[1720522522761,2.3494,3088.9,3087.7,3.0]
[1720522522957,2.3494,3088.9,3087.9,3.2384]
[1720522522958,0.55,3088.8,3087.9,3.2384]
[1720522523163,0.55,3088.8,3087.9,3.23838]
[1720522523964,2.2677,3088.6,3087.7,3.2386]
[1720522524465,0.08095086,3088.5,3087.6,3.23874]
[1720522525511,0.08095086,3088.5,3087.5,3.2388]
[1720522525512,2.2677,3088.6,3087.3,3.23897]
[1720522525695,0.63095273,3088.5,3087.4,3.0]
[1720522526015,3.36456079,3088.4,3087.5,3.2388]
[1720522526210,0.08095632,3088.3,3087.6,3.23875]
[1720522527277,3.36456079,3088.4,3087.6,3.23875]
[1720522527582,3.36456079,3088.4,3087.6,6.4775]
[1720522527792,3.36456079,3088.4,3087.0,2.2927]
[1720522527793,0.08095633,3088.3,3087.0,2.2927]
[1720522527991,2.8189,3088.2,3087.0,3.23928]
[1720522528197,2.55888563,3088.1,3086.6,2.45344368]
[1720522528485,0.9937701,3088.0,3086.9,3.2394]
[1720522528679,0.55,3088.0,3087.0,3.23938]
[1720522529077,2.3764,3087.8,3086.7,3.23963]
[1720522529324,2.3764,3087.6,3086.7,3.23969]
[1720522529480,0.08097838,3087.5,3086.7,3.23969]
[1720522529792,0.08097838,3087.5,3086.5,3.23981]
[1720522530122,0.08097838,3087.5,3086.6,3.23977]
[1720522530548,0.08097841,3087.5,3086.4,3.23993]
[1720522530698,2.3454,3087.4,3086.3,3.24006]
[1720522530903,0.55,3087.3,3086.3,3.24006]
[1720522532348,0.08098734,3087.2,3086.0,7.43]
[1720522532503,0.08098734,3087.2,3085.9,3.24046]
[1720522532504,2.9595,3087.1,3085.9,3.24046]
[1720522532802,0.08099267,3087.0,3085.9,3.24046]
[1720522532999,0.38504194,3087.0,3085.9,3.24046]
[1720522533201,0.55,3086.9,3085.8,3.24058]
[1720522533435,0.08099792,3086.8,3085.8,3.24058]
[1720522533809,2.489,3086.7,3085.8,3.24058]
[1720522534139,0.25699979,3086.6,3085.9,3.2405]
[1720522534312,2.489,3086.7,3085.9,3.2405]
[1720522534509,0.55,3086.9,3085.9,5.6414]
[1720522534712,3.55,3086.9,3085.9,5.6414]
[1720522535114,0.55,3086.9,3086.0,3.30515935]
[1720522535316,2.2948,3087.0,3086.1,3.24026]
[1720522536798,0.08099551,3086.9,3085.8,3.24058]
[1720522537201,0.08099551,3086.9,3085.9,3.2405]
[1720522537444,0.31857506,3086.9,3085.9,3.2405]
[1720522539129,0.31857506,3086.9,3085.6,2.2846]
[1720522539130,2.4411,3086.8,3085.6,3.24077]
[1720522539353,0.63100214,3086.7,3085.6,3.24077]
[1720522539543,2.4411,3086.6,3085.6,3.24077]
[1720522539759,0.08100273,3086.5,3085.6,3.24077]
[1720522540375,2.4411,3086.6,3085.7,3.2407]
[1720522540542,0.29911,3086.5,3085.5,6.24089]
[1720522540748,0.29911,3086.5,3085.6,3.24085]
[1720522541065,2.93840841,3086.4,3085.3,3.24116]
[1720522541267,3.27768151,3086.4,3085.4,3.0]
[1720522541426,3.27768151,3086.4,3085.2,3.24121]
[1720522541639,3.08101515,3086.3,3085.2,3.24121]
[1720522541959,0.08101582,3086.2,3085.2,3.2412]
[1720522542130,0.08101582,3086.2,3085.4,3.24098]
[1720522542449,0.08101582,3086.2,3085.4,6.48197]
[1720522542851,3.0,3086.3,3085.6,3.2408]
[1720522543173,3.0,3086.3,3085.6,6.48158]
[1720522543527,3.0,3086.3,3085.7,3.24074]
[1720522543972,3.1966731,3086.4,3085.7,3.24074]
[1720522544173,0.3392731,3086.4,3085.9,3.24053]
[1720522544332,0.3392731,3086.4,3086.0,0.06480118]
[1720522545486,0.3392731,3086.4,3086.0,3.30523118]
[1720522546970,2.56470183,3086.3,3085.6,3.24075]
[1720522547174,0.08101317,3086.2,3085.2,8.59791]
[1720522547378,3.0337,3086.3,3085.5,3.24095]
[1720522547577,3.0337,3086.3,3085.7,3.24071]
[1720522547578,2.4837,3086.3,3085.7,3.24071]
[1720522548186,2.4837,3086.3,3085.9,3.24045]
[1720522548345,0.3392731,3086.4,3085.8,3.24059]
[1720522548547,0.3392731,3086.4,3085.6,3.24086]
[1720522548850,2.3016,3086.3,3085.7,3.24075]
[1720522549941,2.3016,3086.3,3085.4,3.241]
[1720522550141,2.3016,3086.3,3085.6,3.24085]
[1720522550337,0.3392731,3086.4,3086.3,3.24012]
[1720522550541,2.3016,3088.2,3087.2,3.2391]
[1720522550785,2.3016,3088.2,3087.3,0.06477389]
[1720522550944,2.53176,3088.2,3087.3,3.30378389]
[1720522551643,2.53176,3088.2,3087.3,0.06477389]
[1720522551981,2.4855,3088.1,3086.7,3.23963]
[1720522552151,2.4855,3088.1,3086.9,3.23943]
[1720522552339,2.4855,3088.1,3086.8,3.23959]
[1720522552340,0.271566,3088.0,3086.8,3.23959]
[1720522552788,3.271566,3088.0,3086.8,3.23959]
[1720522552985,0.55,3087.9,3086.8,3.23959]
[1720522553279,0.55,3087.9,3086.9,3.23946]
[1720522553455,0.3821566,3087.8,3086.9,3.23946]
[1720522553659,0.55,3087.7,3086.9,3.23946]
[1720522554470,2.2764,3087.6,3086.6,3.23975]
[1720522554671,2.2764,3087.6,3086.7,3.23967]
[1720522554979,0.55,3087.5,3086.7,3.23967]
[1720522555281,0.55,3087.5,3086.8,3.23953]
[1720522558215,0.55,3087.5,3086.7,3.23967]
[1720522558413,0.63098439,3087.5,3086.5,6.47966]
[1720522558617,0.32282401,3087.4,3086.6,3.2398]
[1720522559519,2.9336,3087.3,3086.3,6.4801]
[1720522559680,0.08099099,3087.2,3086.3,3.24005]
[1720522559885,0.55,3087.1,3086.3,3.24005]
[1720522560819,0.55,3087.2,3086.4,3.24001]
[1720522561021,0.29336,3087.1,3086.4,3.24001]
[1720522561598,0.08099171,3087.0,3086.1,3.24027]
[1720522561796,2.2902,3086.8,3085.9,6.48099]
[1720522562003,0.55,3086.7,3085.9,3.24045]
[1720522562230,0.83402,3086.7,3085.9,3.24045]
[1720522562597,3.9150244,3086.7,3085.5,3.24088]
[1720522562854,3.9150244,3086.7,3085.6,3.24083]
[1720522563009,3.83402,3086.7,3085.7,3.24075]
[1720522563213,0.612422,3086.6,3085.9,3.24045]
[1720522563436,0.55,3086.5,3085.9,3.24045]
[1720522565026,0.55,3086.6,3085.9,3.24045]
[1720522565874,0.55,3086.6,3086.1,3.24032]
[1720522567458,2.2902,3086.8,3086.0,0.06480376]
[1720522567679,0.33929048,3087.1,3086.3,3.24004]
[1720522567833,0.33929048,3087.1,3086.3,6.48008]
[1720522568035,0.55,3087.0,3086.3,6.48008]
[1720522568230,0.55,3087.0,3086.3,3.24004]
[1720522568433,0.30498,3087.0,3086.1,3.24026]
[1720522568978,0.9130301,3086.9,3085.9,3.24047]
[1720522569183,2.3229,3086.7,3085.8,3.24059]
[1720522569383,0.55,3086.6,3085.7,3.24068]
[1720522569546,0.55,3086.6,3085.9,3.24047]
[1720522569950,0.55,3086.6,3086.0,3.24038]
[1720522570686,2.3229,3086.7,3086.3,3.24011]
[1720522570985,2.4623,3087.0,3086.3,3.24011]
[1720522571181,0.91304979,3086.9,3086.3,3.24011]
[1720522571691,0.36304979,3086.8,3086.1,3.24027]
[1720522571895,0.55,3086.7,3085.9,3.24046]
[1720522572061,0.36304979,3086.6,3085.9,6.48091]
[1720522572265,0.36304979,3086.6,3086.0,3.24043]
[1720522573449,0.55,3086.7,3086.0,3.24043]
[1720522573648,0.36316057,3086.6,3086.1,3.24032]
[1720522573901,0.55,3086.9,3086.1,3.24032]
[1720522574192,0.36314409,3086.8,3086.1,3.24032]
[1720522574491,0.36314409,3086.8,3086.3,3.24011]
[1720522574896,0.36309731,3086.7,3086.3,3.24011]
[1720522575058,0.36309731,3086.6,3086.3,3.24011]
[1720522575251,0.55,3086.9,3086.3,3.24006]
[1720522575457,0.3630827,3086.8,3086.6,3.23979]
[1720522575656,2.3417,3087.4,3086.6,3.23979]
[1720522575864,1.18117023,3087.3,3086.6,3.23979]
[1720522576085,0.3630715,3087.2,3086.6,3.23979]
[1720522576394,0.55,3087.1,3086.6,3.23979]
[1720522576591,0.3630715,3087.0,3086.2,3.24015]
[1720522577309,0.3630715,3087.0,3086.4,3.23991]
[1720522577999,0.55,3087.1,3086.4,3.23991]
[1720522578203,0.36317222,3087.0,3086.4,6.47987]
[1720522578407,0.81809873,3087.3,3086.4,3.23991]
[1720522578607,2.35423308,3087.3,3086.4,3.23991]
[1720522578783,0.36321057,3087.2,3086.4,3.23991]
[1720522578984,1.99102251,3087.3,3086.4,6.47988]
[1720522578985,0.91323459,3087.1,3086.4,6.47988]
[1720522579182,0.36323459,3087.0,3086.4,6.47988]
[1720522579392,0.36323459,3087.0,3086.4,3.23991]
[1720522579585,2.4334,3086.9,3086.1,3.2403]
[1720522579797,2.4334,3086.9,3085.5,9.11696]
[1720522579798,0.91323459,3086.8,3085.8,3.24057]
[1720522580117,0.91323459,3086.8,3085.3,13.02893]
[1720522580118,2.08642619,3086.8,3085.6,3.24078]
[1720522580409,0.84868355,3086.7,3085.8,3.24064]
[1720522580709,0.55,3086.6,3085.8,3.24064]
[1720522580908,0.36323459,3086.5,3085.8,6.48122]
[1720522581119,0.36323459,3086.5,3085.8,3.24058]
[1720522581416,0.36344511,3086.4,3085.8,3.24058]
[1720522581579,0.36344511,3086.3,3085.8,3.24058]
[1720522581795,0.36344971,3086.2,3085.6,6.48154]
[1720522582132,1.0708801,3086.6,3085.6,3.24075]
[1720522582447,0.36347505,3086.5,3085.7,3.24067]
[1720522583511,0.36347505,3086.5,3085.8,3.24062]
[1720522583904,0.20008112,3086.5,3085.6,3.24081]
[1720522584103,2.4859,3086.3,3085.6,3.24081]
[1720522584312,0.36347505,3086.2,3085.6,3.24081]
[1720522584614,2.4859,3086.3,3085.6,3.24081]
[1720522584828,0.3636169,3086.2,3085.4,6.48204]
[1720522585142,0.3636169,3086.2,3085.4,6.48197]
[1720522585494,0.3636169,3086.2,3085.4,3.24098]
[1720522585921,0.3636169,3086.2,3085.4,6.48199]
[1720522586228,0.3636169,3086.2,3085.5,3.24096]
[1720522586429,0.3636169,3086.2,3085.6,3.24086]
[1720522586748,0.3636169,3086.2,3085.4,6.48197]
[1720522587260,0.3636169,3086.2,3085.5,3.24095]
[1720522587963,2.4859,3086.3,3085.5,3.24095]
[1720522588131,0.36341704,3086.2,3085.5,3.24095]
[1720522589243,0.36341704,3086.2,3085.6,3.24084]
[1720522589549,0.36341704,3086.2,3085.6,6.48163]
[1720522589751,2.9031,3086.6,3085.6,6.48163]
[1720522589953,0.36329301,3086.5,3085.7,0.06481001]
[1720522590163,0.36329301,3086.5,3085.5,2.876]
[1720522590316,0.36329301,3086.5,3085.8,3.24065]
[1720522590661,0.36329301,3086.5,3085.9,3.24053]
[1720522591344,0.36332368,3086.4,3085.9,3.24053]
[1720522591644,0.36332167,3086.3,3085.9,3.24053]
[1720522591874,2.3531,3086.6,3085.9,3.24053]
[1720522592086,0.36329839,3086.5,3085.9,3.24053]
[1720522593046,0.36329839,3086.5,3085.9,6.48101]
[1720522593381,0.36329839,3086.5,3086.0,3.24043]
[1720522593877,5.4783,3087.0,3086.2,3.2402]
[1720522594092,0.36326867,3086.9,3086.3,3.2401]
[1720522594887,0.36325218,3086.8,3086.3,3.2401]
[1720522595198,0.36325218,3086.7,3086.3,3.2401]
[1720522595395,0.36322013,3086.6,3086.3,3.2401]
[1720522595554,5.4783,3087.0,3086.3,3.2401]
[1720522595754,0.3632379,3086.9,3086.3,3.2401]
[1720522596552,0.3632379,3086.9,3086.1,6.48052]
[1720522596754,0.3632379,3086.9,3086.2,3.24015]
[1720522597047,0.3632379,3086.9,3086.1,3.24026]
[1720522597048,0.3632379,3086.9,3086.3,3.30489386]
[1720522597356,0.3632379,3086.9,3086.3,6.48017]
[1720522597667,0.3632379,3086.9,3086.3,3.24007]
[1720522597870,0.3632379,3086.9,3085.9,5.65856]
[1720522598065,0.36323656,3086.8,3085.9,3.24046]
[1720522598251,0.91323656,3086.7,3085.9,3.24046]
[1720522598452,0.36323656,3086.6,3085.9,3.24046]
[1720522599664,0.36323656,3086.6,3085.9,6.48095]
[1720522600593,0.36323656,3086.6,3086.0,3.24043]
[1720522601351,0.55,3086.7,3086.0,3.24043]
[1720522601568,0.36307396,3086.6,3086.0,3.24043]
[1720522601770,0.36307396,3086.5,3086.0,3.24043]
[1720522601972,0.36307396,3086.4,3086.0,3.24043]
[1720522602202,0.36307396,3086.3,3086.0,3.24043]
[1720522602502,0.36307396,3086.2,3085.8,6.48116]
[1720522602712,0.36307396,3086.1,3085.9,3.24054]
[1720522602873,0.36307396,3086.0,3085.9,3.24054]
[1720522603261,1.61711795,3086.8,3086.0,3.24043]
[1720522603482,1.15454581,3086.7,3086.0,3.24043]
[1720522603696,2.32682304,3086.7,3086.0,3.24043]
[1720522603863,0.36305101,3086.6,3086.0,3.24043]
[1720522604822,0.7914948,3086.7,3086.0,3.24043]
[1720522604979,0.9129108,3086.7,3086.0,3.24043]
[1720522605166,0.3629108,3086.6,3085.9,3.24054]
[1720522605369,0.3629108,3086.5,3085.9,3.24054]
[1720522605589,0.3629108,3086.4,3085.9,3.24054]
[1720522605797,0.3629108,3086.3,3085.9,3.24054]
[1720522606102,0.3629108,3086.2,3085.9,3.24054]
[1720522606308,0.3629108,3086.1,3085.9,3.24054]
[1720522606464,0.3629108,3086.0,3085.9,3.24054]
[1720522606825,1.53461532,3086.6,3085.9,3.24054]
[1720522607129,1.53461532,3086.5,3085.9,6.48101]
[1720522607324,0.3629108,3086.4,3085.9,6.48101]
[1720522607525,0.3629108,3086.3,3085.9,6.48101]
[1720522607689,0.3629108,3086.2,3086.0,3.24042]
[1720522607894,1.72176867,3086.7,3086.0,3.24042]
[1720522608090,1.53468476,3086.6,3086.0,3.24042]
[1720522608322,0.36293135,3086.5,3086.0,3.24042]
[1720522608494,0.36293135,3086.4,3085.9,3.24054]
[1720522608693,0.36293135,3086.3,3085.9,3.24054]
[1720522608890,0.36293135,3086.2,3085.7,3.24067]
[1720522609120,0.36293135,3086.1,3085.7,3.24067]
[1720522609313,0.36293135,3086.0,3085.7,3.24067]
[1720522609637,0.36293135,3085.9,3085.7,3.24067]
[1720522609948,2.3659,3086.4,3085.7,3.24067]
[1720522610138,0.36296347,3086.3,3085.7,3.24067]
[1720522611531,2.3659,3086.4,3085.7,3.24067]
[1720522611696,0.36294403,3086.3,3085.7,6.48135]
[1720522612031,0.36294403,3086.3,3085.7,3.24067]
[1720522612201,0.36294403,3086.3,3085.7,6.48136]
[1720522612723,0.36294403,3086.3,3085.7,6.48134]
[1720522613233,0.36294403,3086.3,3086.1,5.65675]
[1720522613439,1.17142,3086.8,3086.2,3.24017]
[1720522613592,1.53420769,3086.8,3086.2,3.24017]
[1720522613794,2.4367,3086.7,3085.9,3.24048]
[1720522614038,0.36281583,3086.6,3085.9,3.24048]
[1720522614336,1.53428957,3086.6,3086.0,3.24038]
[1720522614533,0.36281583,3086.6,3086.2,3.24016]
[1720522614732,0.36281583,3086.5,3086.3,3.24012]
[1720522614901,0.36281778,3086.4,3086.3,3.24012]
[1720522615531,1.70744665,3087.1,3086.3,3.24012]
[1720522615532,0.36281778,3087.0,3086.3,3.24012]
[1720522615740,1.53437497,3087.0,3086.3,3.24012]
[1720522615907,1.53431913,3086.9,3086.3,3.24012]
[1720522616236,1.53431913,3086.8,3086.3,3.24012]
[1720522616399,0.36278834,3086.7,3086.2,3.24022]
[1720522616600,0.36278834,3086.6,3086.2,3.24022]
[1720522616816,0.36278834,3086.5,3086.2,3.24022]
[1720522617021,0.36278834,3086.4,3086.2,3.24022]
[1720522617243,1.82249477,3086.9,3086.2,3.24022]
[1720522617552,0.91278945,3086.8,3086.2,3.24022]
[1720522617754,0.36278945,3086.7,3086.3,3.24006]
[1720522617913,0.36278945,3086.6,3086.3,3.24006]
[1720522618119,0.36278945,3086.5,3086.3,3.24006]
[1720522618322,0.36274322,3086.4,3086.3,3.24006]
[1720522618532,1.17148944,3086.9,3086.3,3.24006]
[1720522618533,1.53423266,3086.9,3086.3,3.24006]
[1720522618857,0.36276517,3086.8,3086.3,3.24006]
[1720522619060,0.36276517,3086.7,3086.3,3.24006]
[1720522619232,0.36276517,3086.6,3086.3,3.24006]
[1720522619434,0.36276517,3086.5,3085.6,2.3611]
[1720522619660,1.17155432,3086.9,3085.9,3.24044]
[1720522619661,0.36276517,3086.4,3085.9,3.24044]
[1720522619956,0.36276517,3086.3,3085.9,3.24044]
[1720522620162,0.36276517,3086.2,3086.0,3.24043]
[1720522620337,0.47053743,3086.8,3086.0,3.24043]
[1720522620522,1.07705589,3086.7,3086.0,3.24043]
[1720522620975,0.71420918,3086.7,3086.0,3.24043]
[1720522621119,0.36285126,3086.6,3086.0,3.24043]
[1720522621935,0.36285126,3086.6,3086.1,3.24025]
[1720522622242,0.36285126,3086.6,3086.3,3.24007]
[1720522622472,0.36285126,3086.5,3086.3,3.24007]
[1720522622752,0.36285126,3086.4,3086.3,3.24007]
[1720522622949,1.17154746,3086.9,3086.5,3.23982]
[1720522623275,2.4901,3087.5,3086.2,2.3749]
[1720522623276,0.36281756,3086.8,3086.7,3.23968]
[1720522623685,0.36281756,3087.1,3086.7,3.23968]
[1720522623843,0.36281756,3087.0,3086.7,3.23968]
[1720522624034,0.36281756,3086.9,3086.7,3.23968]
[1720522624394,1.17154746,3087.4,3086.7,3.23968]
[1720522624395,0.36271051,3086.8,3086.7,3.23968]
[1720522624678,0.36271051,3087.2,3086.7,3.23968]
[1720522624851,0.36271051,3087.1,3086.7,3.23968]
[1720522625034,0.36271051,3087.0,3086.7,3.23968]
[1720522625237,0.36271051,3086.9,3086.7,3.23968]
[1720522625475,0.36271051,3086.8,3086.7,3.23968]
[1720522625642,2.4901,3087.5,3086.8,3.23959]
[1720522625846,2.08366553,3087.4,3086.8,3.23959]
[1720522626077,0.36257102,3087.3,3086.8,3.23959]
[1720522627576,0.36228444,3087.2,3086.8,3.23959]
[1720522627765,0.36228444,3087.1,3086.8,3.30437548]
[1720522627952,0.36228444,3087.0,3086.8,3.23959]
[1720522628137,0.55,3087.4,3086.8,3.23959]
[1720522628339,0.36228143,3087.3,3086.8,3.30437548]
[1720522628539,0.36228143,3087.2,3086.8,3.30437548]
[1720522628841,0.36228143,3087.1,3086.8,3.30437548]
[1720522629070,0.36228143,3087.0,3086.8,3.30437548]
[1720522629268,0.55,3087.5,3086.8,3.23954]
[1720522629457,0.36207943,3087.4,3086.8,6.47907]
[1720522629665,0.36207943,3087.4,3086.8,6.54385548]
[1720522629987,0.36207943,3087.4,3087.1,3.23925]
[1720522630139,0.36207943,3087.3,3087.1,3.30402871]
[1720522630341,2.4717,3088.1,3087.4,3.23891]
[1720522630576,0.36197582,3088.0,3087.4,3.30368287]
[1720522630799,3.45487,3088.1,3087.4,3.23891]
[1720522631074,0.64271554,3088.0,3087.6,3.23874]
[1720522631586,2.3361,3088.5,3087.6,3.23874]
[1720522631587,0.64271554,3087.9,3087.6,3.23874]
[1720522631927,1.26339456,3088.4,3087.6,3.23874]
[1720522632107,1.90624076,3088.4,3087.6,3.23874]
[1720522632285,0.42423408,3088.3,3087.6,3.23874]
[1720522632595,0.6428462,3088.2,3087.6,3.23874]
[1720522632790,0.6428462,3088.2,3087.4,6.54256287]
[1720522632997,0.55,3088.1,3087.4,6.54255287]
[1720522633199,0.6428462,3088.0,3087.4,6.54255287]
[1720522633394,0.6428462,3088.0,3087.3,2.3089]
[1720522633395,0.6428462,3088.0,3087.2,3.23911]
[1720522633593,0.6428462,3088.0,3087.3,3.23906]
[1720522634026,0.55,3088.1,3087.4,3.23895]
[1720522634196,0.64295168,3088.0,3087.4,3.23895]
[1720522634397,0.64295168,3087.9,3087.4,3.23895]
[1720522634722,0.89242341,3088.2,3087.4,3.23895]
[1720522634878,0.64330648,3088.1,3087.4,3.23895]
[1720522635524,0.64330648,3088.1,3087.3,3.23899]
[1720522635726,0.83930288,3088.1,3087.3,3.23899]
[1720522635944,0.64330648,3088.0,3087.3,3.23899]
[1720522636329,0.64330648,3088.0,3087.4,3.23896]
[1720522636724,0.1959964,3088.1,3087.4,3.23896]
[1720522637033,0.64324209,3088.0,3087.4,3.23896]
[1720522637548,0.64336047,3087.9,3087.1,2.4663]
[1720522637704,0.55,3087.8,3087.1,5.4663]
[1720522637911,1.19332662,3087.8,3087.1,5.4663]
[1720522638107,0.55,3087.8,3087.1,2.4663]
[1720522638329,0.64325651,3087.7,3087.1,2.4663]
[1720522638514,0.84970662,3087.8,3087.1,2.4663]
[1720522638838,0.6432912,3087.7,3086.8,2.3224]
[1720522639116,0.55,3087.6,3086.8,2.3224]
[1720522639360,0.55,3087.6,3086.9,0.06478473]
[1720522639526,0.55,3087.7,3087.0,3.23938]
[1720522639938,0.64317265,3087.6,3086.8,8.8014]
[1720522640121,0.55,3087.7,3086.8,5.56189]
[1720522640322,0.64328266,3087.6,3086.9,3.23948]
[1720522640511,1.16236066,3087.7,3086.9,3.23948]
[1720522640920,0.64337998,3087.6,3086.9,3.23948]
[1720522641235,0.55,3087.5,3086.7,3.2397]
[1720522641439,0.64334788,3087.4,3086.7,3.2397]
[1720522642143,0.55,3087.5,3086.7,3.2397]
[1720522642702,0.55,3087.5,3086.8,3.23957]
[1720522642939,3.0,3088.3,3087.1,2.4902]
[1720522643101,1.42060434,3087.8,3087.1,2.4902]
[1720522643305,0.64321434,3087.7,3087.1,2.4902]
[1720522643534,0.55,3087.8,3087.1,2.4902]
[1720522643750,0.55,3088.0,3087.1,5.79424699]
[1720522644037,2.491,3088.2,3087.1,5.79424699]
[1720522644038,0.64328016,3087.9,3087.3,3.23903]
[1720522644240,0.64331361,3087.8,3087.3,3.23903]
[1720522644448,2.491,3088.2,3087.3,3.23903]
[1720522644739,0.64332513,3088.1,3087.3,3.23903]
[1720522644905,0.64332513,3088.1,3087.2,3.23918]
[1720522645649,0.64332513,3088.1,3087.2,6.47829]
[1720522645810,1.25675764,3088.1,3087.2,6.47829]
[1720522646150,1.16332513,3088.0,3087.3,3.3038313]
[1720522646307,0.52,3088.0,3087.3,3.3038313]
[1720522646508,2.491,3088.2,3087.3,3.3038313]
[1720522646708,0.64327532,3088.1,3087.3,3.23906]
[1720522647228,2.491,3088.2,3087.3,3.30383024]
[1720522647401,0.64328605,3088.1,3087.4,3.23896]
[1720522647843,0.64328605,3088.1,3087.5,0.06477023]
[1720522648147,0.55,3088.0,3087.5,0.06477023]
[1720522648507,0.55,3088.1,3087.5,0.06477023]
[1720522648708,0.55,3088.2,3087.5,0.06477023]
[1720522649024,0.64325942,3088.1,3087.4,3.23896]
[1720522649225,0.55,3088.0,3087.4,3.23896]
[1720522649429,0.55,3088.3,3087.4,3.23896]
[1720522649608,0.6432646,3088.2,3087.4,3.23896]
[1720522649806,0.55,3088.1,3087.4,3.23896]
[1720522650007,0.6432751,3088.0,3087.4,3.23896]
[1720522650672,0.55,3088.1,3087.4,3.23896]